fUSD/lending_fUSD_20250116
["ID","MTS","AMOUNT","RATE_DAILY","PERIOD"]
[349189848,1737025833200,-500.0,0.00040799,18]
[349189850,1737025833210,-500.0,0.00040799,18]
[349189852,1737025833220,-500.0,0.00040799,18]
[349189854,1737025833235,-157.836116,0.00040799,18]
[349189857,1737025833246,-500.0,0.00040799,18]
[349189858,1737025833256,-157.945191,0.00040799,18]
[349189861,1737025833267,-500.0,0.00040799,18]
[349189862,1737025833277,-500.0,0.00040799,18]
[349189865,1737025833287,-500.0,0.00040799,18]
[349189866,1737025833297,-1306.77,0.00040799,18]
[349189868,1737025833307,-500.0,0.00040799,18]
[349189870,1737025833317,-156.313772,0.00040799,18]
[349189872,1737025833327,-500.0,0.00040799,18]
[349189874,1737025833337,-500.0,0.00040799,18]
[349189877,1737025833347,-500.0,0.00040799,18]
[349189879,1737025833357,-500.0,0.00040799,18]
[349189881,1737025833369,-574.81,0.00040799,18]
[349189882,1737025833379,-500.0,0.00040799,18]
[349189884,1737025833389,-500.0,0.00040799,18]
[349189886,1737025833399,-500.0,0.00040799,18]
[349189888,1737025833410,-500.0,0.00040799,18]
[349189890,1737025833420,-26043.4781,0.000408,2]
[349189892,1737025833430,-152.61,0.000408,31]
[349189894,1737025833440,-152.61,0.000408,31]
[349189896,1737025833450,-190.711596,0.00040898,18]
[349189898,1737025833462,-156.428756,0.00040898,18]
[349189900,1737025833473,-500.0,0.00040898,18]
[349189902,1737025833487,-1139.06,0.00040898,18]
[349189904,1737025833498,-500.0,0.00040898,18]
[349189906,1737025833508,-500.0,0.00040898,18]
[349189908,1737025833519,-620.04776277,0.00040898,18]
[349189910,1737025833529,-500.0,0.00040898,7]
[349189912,1737025833540,-1294.36,0.00040898,18]
[349189914,1737025833551,-500.0,0.00040898,18]
[349189916,1737025833562,-500.0,0.00040898,18]
[349189918,1737025833574,-500.0,0.00040898,18]
[349189920,1737025833585,-500.0,0.00040898,18]
[349189922,1737025833596,-500.0,0.00040898,2]
[349189924,1737025833607,-500.0,0.00040898,18]
[349189926,1737025833618,-1472.44,0.00040898,18]
[349189928,1737025833629,-644.28,0.00040898,18]
[349189930,1737025833640,-718.2,0.00040898,18]
[349189932,1737025833650,-500.0,0.00040898,18]
[349189935,1737025833660,-1257.58,0.00040898,18]
[349189936,1737025833670,-500.0,0.00040898,18]
[349189938,1737025833680,-3229.58,0.00040898,18]
[349189940,1737025833690,-659.35,0.00040898,18]
[349189942,1737025833700,-2150.58,0.00040898,18]
[349189944,1737025833711,-500.0,0.00040898,18]
[349189946,1737025833723,-500.0,0.00040898,18]
[349189948,1737025833737,-859.06,0.00040898,18]
[349189950,1737025833748,-645.8,0.00040898,18]
[349189952,1737025833763,-1190.86,0.00040898,18]
[349189954,1737025833774,-500.0,0.00040898,18]
[349189956,1737025833784,-500.0,0.00040898,18]
[349189958,1737025833795,-869.66,0.00040898,18]
[349189960,1737025833805,-500.0,0.00040898,18]
[349189962,1737025833815,-2612.61,0.00040898,18]
[349189964,1737025833825,-1833.63,0.00040898,18]
[349189966,1737025833836,-1037.68,0.00040898,18]
[349189968,1737025833846,-500.0,0.00040898,18]
[349189970,1737025833856,-500.0,0.00040898,18]
[349189972,1737025833866,-514.07,0.00040898,18]
[349189974,1737025833876,-500.0,0.00040898,18]
[349189976,1737025833886,-649.2,0.00040898,18]
[349189978,1737025833896,-500.0,0.00040898,18]
[349189980,1737025833905,-390.93212495,0.00040898,18]
[349189982,1737025833915,-1415.6,0.00040898,18]
[349189984,1737025833925,-500.0,0.00040898,18]
[349189986,1737025833934,-742.71,0.00040898,18]
[349189988,1737025833943,-500.0,0.00040898,18]
[349189990,1737025833954,-151.0522996,0.00040898,18]
[349189992,1737025833964,-500.0,0.00040898,18]
[349189994,1737025833977,-500.0,0.00040898,18]
[349189996,1737025833987,-1306.77,0.00040898,18]
[349189998,1737025833997,-602.25,0.00040898,18]
[349190000,1737025834007,-500.0,0.00040898,18]
[349190002,1737025834017,-500.0,0.00040898,18]
[349190004,1737025834026,-500.0,0.00040898,18]
[349190005,1737025834036,-745.57,0.00040898,18]
[349190008,1737025834046,-500.0,0.00040899,18]
[349190009,1737025834056,-500.0,0.00040899,18]
[349190011,1737025834066,-404.66063088,0.00040899,18]
[349190014,1737025834076,-500.0,0.00040899,18]
[349190015,1737025834086,-500.0,0.00040899,18]
[349190017,1737025834095,-500.0,0.00040899,18]
[349190018,1737025834105,-500.0,0.00040899,18]
[349190019,1737025834115,-501.86320342,0.00040899,18]
[349190020,1737025834125,-500.0,0.00040899,18]
[349190021,1737025834135,-500.0,0.00040899,18]
[349190022,1737025834145,-500.0,0.00040899,18]
[349190023,1737025834156,-504.70030652,0.00040899,18]
[349190024,1737025834166,-500.0,0.00040899,18]
[349190025,1737025834176,-500.0,0.00040899,18]
[349190026,1737025834187,-601.7391099,0.00040899,18]
[349190027,1737025834197,-470.46982684,0.00040899,18]
[349190046,1737025834400,-29.53017316,0.00040899,18]
[349190048,1737025834410,-500.0,0.00040899,18]
[349190050,1737025834420,-500.0,0.00040899,18]
[349190052,1737025834430,-500.0,0.00040899,18]
[349190054,1737025834440,-500.0,0.00040899,18]
[349190056,1737025834450,-500.0,0.00040899,18]
[349190058,1737025834460,-522.87923353,0.00040899,18]
[349190060,1737025834469,-500.0,0.00040899,18]
[349190062,1737025834482,-500.0,0.00040899,18]
[349190064,1737025834492,-500.0,0.00040899,18]
[349190066,1737025834502,-608.60669961,0.00040899,18]
[349190068,1737025834512,-500.0,0.00040899,18]
[349190070,1737025834522,-500.0,0.00040899,18]
[349190072,1737025834531,-507.95389057,0.00040899,18]
[349190074,1737025834541,-504.85645717,0.00040899,18]
[349190076,1737025834551,-500.0,0.00040899,18]
[349190078,1737025834561,-500.0,0.00040899,18]
[349190080,1737025834570,-505.18777061,0.00040899,18]
[349190082,1737025834580,-500.0,0.00040899,18]
[349190084,1737025834589,-500.0,0.00040899,18]
[349190086,1737025834599,-500.0,0.00040899,18]
[349190088,1737025834608,-500.0,0.00040899,18]
[349190090,1737025834617,-478.92936893,0.00040899,18]
[349190092,1737025834626,-500.0,0.00040899,18]
[349190094,1737025834636,-500.0,0.00040899,18]
[349190096,1737025834645,-500.0,0.00040899,18]
[349190098,1737025834655,-500.0,0.00040899,18]
[349190100,1737025834665,-500.0,0.00040899,18]
[349190102,1737025834674,-500.0,0.00040899,18]
[349190104,1737025834684,-500.0,0.00040899,18]
[349190106,1737025834694,-500.0,0.00040899,18]
[349190108,1737025834703,-500.0,0.00040899,18]
[349190110,1737025834712,-500.0,0.00040899,18]
[349190112,1737025834726,-502.15782257,0.00040899,18]
[349190114,1737025834735,-500.0,0.00040899,18]
[349190116,1737025834745,-500.0,0.00040899,18]
[349190118,1737025834758,-491.91538609,0.00040899,18]
[349190120,1737025834773,-500.0,0.00040899,18]
[349190122,1737025834783,-500.0,0.00040899,18]
[349190124,1737025834792,-500.0,0.00040899,18]
[349190126,1737025834802,-500.0,0.00040899,18]
[349190128,1737025834811,-502.55194912,0.00040899,18]
[349190130,1737025834820,-500.0,0.00040899,18]
[349190131,1737025834830,-500.0,0.00040899,18]
[349190134,1737025834841,-503.62608952,0.00040899,18]
[349190136,1737025834851,-500.0,0.00040899,18]
[349190138,1737025834860,-500.0,0.00040899,18]
[349190140,1737025834870,-502.33981623,0.00040899,18]
[349190142,1737025834880,-1436.75,0.00040899,45]
[349190143,1737025834891,-500.0,0.00040899,18]
[349190146,1737025834900,-500.0,0.00040899,18]
[349190148,1737025834910,-500.0,0.00040899,18]
[349190150,1737025834919,-500.0,0.00040899,18]
[349190152,1737025834930,-503.77043702,0.00040899,18]
[349190154,1737025834940,-500.0,0.00040899,18]
[349190156,1737025834949,-500.0,0.00040899,18]
[349190157,1737025834959,-500.0,0.00040899,18]
[349190159,1737025834968,-602.63850091,0.00040899,18]
[349190161,1737025834980,-500.0,0.00040899,18]
[349190163,1737025834990,-500.0,0.00040899,18]
[349190165,1737025835000,-500.0,0.00040899,18]
[349190167,1737025835011,-500.0,0.00040899,18]
[349190169,1737025835022,-500.0,0.00040899,18]
[349190171,1737025835033,-500.0,0.00040899,18]
[349190174,1737025835043,-506.12693643,0.00040899,18]
[349190176,1737025835053,-500.0,0.00040899,18]
[349190178,1737025835063,-500.0,0.00040899,18]
[349190180,1737025835073,-500.0,0.00040899,18]
[349190182,1737025835083,-500.0,0.00040899,18]
[349190184,1737025835094,-158.96400904,0.00040899,18]
[349190186,1737025835103,-500.0,0.00040899,18]
[349190188,1737025835112,-500.0,0.00040899,18]
[349190190,1737025835122,-500.0,0.00040899,18]
[349190192,1737025835132,-364.74690546,0.00040899,18]
[349190194,1737025835142,-500.0,0.00040899,18]
[349190195,1737025835151,-500.0,0.00040899,18]
[349190197,1737025835160,-505.78309902,0.00040899,18]
[349190199,1737025835169,-505.92370549,0.00040899,18]
[349190201,1737025835179,-500.0,0.00040899,18]
[349190203,1737025835188,-500.0,0.00040899,18]
[349190205,1737025835199,-500.0,0.00040899,18]
[349190208,1737025835209,-500.0,0.00040899,18]
[349190209,1737025835218,-502.07612469,0.00040899,18]
[349190212,1737025835229,-505.54149223,0.00040899,18]
[349190214,1737025835239,-500.0,0.00040899,18]
[349190215,1737025835249,-500.0,0.00040899,18]
[349190218,1737025835258,-500.0,0.00040899,18]
[349190220,1737025835268,-500.0,0.00040899,18]
[349190222,1737025835277,-500.0,0.00040899,18]
[349190224,1737025835287,-562.17,0.00040899,18]
[349190226,1737025835298,-503.04558749,0.00040899,18]
[349190228,1737025835308,-500.0,0.00040899,18]
[349190230,1737025835317,-500.0,0.00040899,18]
[349190232,1737025835327,-500.0,0.00040899,18]
[349190234,1737025835337,-500.0,0.00040899,18]
[349190236,1737025835346,-505.07114465,0.00040899,18]
[349190238,1737025835356,-500.0,0.00040899,18]
[349190240,1737025835366,-634.90024462,0.00040899,18]
[349190242,1737025835375,-500.0,0.00040899,18]
[349190243,1737025835385,-500.0,0.00040899,18]
[349190245,1737025835394,-500.0,0.00040899,18]
[349190248,1737025835404,-500.0,0.00040899,18]
[349190250,1737025835414,-500.0,0.00040899,18]
[349190252,1737025835423,-500.0,0.00040899,18]
[349190254,1737025835433,-500.0,0.00040899,18]
[349190256,1737025835443,-407.73348171,0.00040899,18]
[349190258,1737025835453,-500.0,0.00040899,18]
[349190260,1737025835463,-500.0,0.00040899,18]
[349190262,1737025835472,-500.95484098,0.00040899,18]
[349190264,1737025835482,-500.0,0.00040899,18]
[349190266,1737025835492,-500.0,0.00040899,18]
[349190268,1737025835502,-500.0,0.00040899,18]
[349190270,1737025835511,-500.0,0.00040899,18]
[349190272,1737025835520,-505.26722651,0.00040899,18]
[349190274,1737025835530,-500.0,0.00040899,18]
[349190276,1737025835539,-500.0,0.00040899,18]
[349190278,1737025835548,-500.0,0.00040899,18]
[349190280,1737025835559,-500.0,0.00040899,18]
[349190282,1737025835569,-500.0,0.00040899,18]
[349190284,1737025835578,-500.0,0.00040899,18]
[349190298,1737025835703,-500.0,0.00040899,18]
[349190300,1737025835712,-27.8546008,0.00040899,18]
[349190303,1737025835731,-311.34125143,0.00040899,18]
[349190305,1737025835743,-160.80414777,0.00040899,18]
[349190307,1737025835756,-527.8400241,0.00040899,18]
[349190309,1737025835765,-500.0,0.00040899,18]
[349190311,1737025835774,-220.60812282,0.00040899,18]
[349190314,1737025835795,-279.39187718,0.00040899,18]
[349190317,1737025835807,-500.0,0.00040899,18]
[349190319,1737025835816,-500.0,0.00040899,18]
[349190321,1737025835826,-501.95324315,0.00040899,18]
[349190323,1737025835836,-500.0,0.00040899,18]
[349190324,1737025835846,-500.0,0.00040899,18]
[349190327,1737025835856,-500.0,0.00040899,18]
[349190328,1737025835865,-45.25487967,0.00040899,18]
[349190331,1737025835877,-454.74512033,0.00040899,18]
[349190333,1737025835886,-500.0,0.00040899,18]
[349190335,1737025835896,-500.0,0.00040899,18]
[349190337,1737025835905,-500.0,0.00040899,18]
[349190339,1737025835914,-500.0,0.00040899,18]
[349190341,1737025835924,-500.0,0.00040899,18]
[349190343,1737025835934,-500.7724262,0.00040899,18]
[349190345,1737025835943,-503.3699436,0.00040899,18]
[349190347,1737025835952,-500.0,0.00040899,18]
[349190349,1737025835962,-381.61250987,0.00040899,18]
[349190351,1737025835979,-121.65426171,0.00040899,18]
[349190353,1737025835989,-500.0,0.00040899,18]
[349190355,1737025835998,-187.45108573,0.00040899,18]
[349190357,1737025836010,-312.54891427,0.00040899,18]
[349190359,1737025836019,-500.0,0.00040899,18]
[349190361,1737025836029,-500.0,0.00040899,18]
[349190363,1737025836038,-500.0,0.00040899,18]
[349190365,1737025836048,-500.0,0.00040899,18]
[349190367,1737025836057,-500.0,0.00040899,18]
[349190369,1737025836066,-513.43404949,0.00040899,18]
[349190371,1737025836075,-500.0,0.00040899,18]
[349190373,1737025836085,-500.0,0.00040899,18]
[349190374,1737025836095,-500.0,0.00040899,18]
[349190377,1737025836104,-500.0,0.00040899,18]
[349190378,1737025836114,-500.0,0.00040899,18]
[349190381,1737025836124,-500.0,0.00040899,18]
[349190382,1737025836134,-500.0,0.00040899,18]
[349190384,1737025836144,-500.0,0.00040899,18]
[349190386,1737025836153,-500.0,0.00040899,18]
[349190388,1737025836162,-500.0,0.00040899,18]
[349190390,1737025836171,-500.0,0.00040899,18]
[349190392,1737025836181,-500.0,0.00040899,18]
[349190394,1737025836190,-500.0,0.00040899,18]
[349190396,1737025836199,-500.0,0.00040899,18]
[349190398,1737025836209,-500.0,0.00040899,18]
[349190400,1737025836218,-600.97348055,0.00040899,18]
[349190402,1737025836232,-500.0,0.00040899,18]
[349190404,1737025836241,-500.0,0.00040899,18]
[349190406,1737025836250,-500.0,0.00040899,18]
[349190408,1737025836261,-500.0,0.00040899,18]
[349190410,1737025836270,-500.0,0.00040899,18]
[349190412,1737025836280,-500.0,0.00040899,18]
[349190414,1737025836289,-500.0,0.00040899,18]
[349190416,1737025836299,-500.0,0.00040899,18]
[349190418,1737025836308,-501.29711857,0.00040899,18]
[349190420,1737025836317,-500.0,0.00040899,18]
[349190422,1737025836327,-501.67522953,0.00040899,18]
[349190424,1737025836337,-500.0,0.00040899,18]
[349190426,1737025836346,-500.0,0.00040899,18]
[349190428,1737025836356,-502.47447336,0.00040899,18]
[349190430,1737025836365,-502.51881672,0.00040899,18]
[349190432,1737025836375,-500.0,0.00040899,18]
[349190434,1737025836385,-500.0,0.00040899,18]
[349190436,1737025836394,-500.0,0.00040899,18]
[349190438,1737025836404,-500.0,0.00040899,18]
[349190440,1737025836414,-502.64415628,0.00040899,18]
[349190442,1737025836423,-500.0,0.00040899,18]
[349190445,1737025836434,-500.0,0.00040899,18]
[349190446,1737025836443,-169.03875835,0.00040899,18]
[349190448,1737025836453,-500.0,0.00040899,18]
[349190451,1737025836462,-521.75707038,0.00040899,18]
[349190452,1737025836472,-500.0,0.00040899,18]
[349190455,1737025836485,-500.0,0.00040899,18]
[349190456,1737025836495,-500.0,0.00040899,18]
[349190458,1737025836504,-500.0,0.00040899,18]
[349190460,1737025836514,-500.0,0.00040899,18]
[349190462,1737025836523,-500.0,0.00040899,18]
[349190464,1737025836533,-500.0,0.00040899,18]
[349190467,1737025836543,-500.0,0.00040899,18]
[349190469,1737025836552,-500.0,0.00040899,18]
[349190471,1737025836561,-500.0,0.00040899,18]
[349190473,1737025836571,-501.09616229,0.00040899,18]
[349190475,1737025836580,-500.0,0.00040899,18]
[349190477,1737025836590,-503.5191694,0.00040899,18]
[349190479,1737025836599,-500.0,0.00040899,18]
[349190480,1737025836609,-500.0,0.00040899,18]
[349190481,1737025836618,-501.54563205,0.00040899,18]
[349190482,1737025836628,-501.05311338,0.00040899,18]
[349190483,1737025836637,-500.0,0.00040899,18]
[349190484,1737025836647,-500.0,0.00040899,18]
[349190485,1737025836656,-500.0,0.00040899,18]
[349190486,1737025836666,-477.51372724,0.00040899,18]
[349190487,1737025836675,-500.0,0.00040899,18]
[349190488,1737025836685,-500.0,0.00040899,18]
[349190489,1737025836693,-497.50901249,0.00040899,18]
[349190490,1737025836703,-503.25434641,0.00040899,18]
[349190491,1737025836712,-500.0,0.00040899,18]
[349190492,1737025836722,-500.0,0.00040899,18]
[349190493,1737025836734,-500.0,0.00040899,18]
[349190494,1737025836743,-500.0,0.00040899,18]
[349190495,1737025836754,-500.0,0.00040899,18]
[349190496,1737025836766,-503.12997639,0.00040899,18]
[349190497,1737025836775,-500.0,0.00040899,18]
[349190498,1737025836784,-501.54643335,0.00040899,18]
[349190499,1737025836793,-503.29084378,0.00040899,18]
[349190500,1737025836803,-581.8,0.00040899,18]
[349190501,1737025836813,-500.0,0.00040899,18]
[349190502,1737025836822,-500.0,0.00040899,18]
[349190503,1737025836833,-500.0,0.00040899,18]
[349190504,1737025836842,-502.80202421,0.00040899,18]
[349190505,1737025836852,-505.45144453,0.00040899,18]
[349190506,1737025836862,-500.0,0.00040899,18]
[349190507,1737025836871,-500.0,0.00040899,18]
[349190508,1737025836881,-500.0,0.00040899,18]
[349190509,1737025836891,-500.0,0.00040899,18]
[349190510,1737025836900,-504.21757567,0.00040899,18]
[349190511,1737025836910,-500.0,0.00040899,18]
[349190512,1737025836919,-502.76609654,0.00040899,18]
[349190513,1737025836929,-538.32276941,0.00040899,18]
[349190514,1737025836938,-503.80388081,0.00040899,18]
[349190515,1737025836948,-500.0,0.00040899,18]
[349190516,1737025836958,-505.48947694,0.00040899,18]
[349190517,1737025836967,-500.0,0.00040899,18]
[349190518,1737025836978,-500.0,0.00040899,18]
[349190519,1737025836988,-503.2277497,0.00040899,18]
[349190520,1737025836997,-1000.0,0.00040899,2]
[349190521,1737025837006,-599.53798337,0.00040899,18]
[349190522,1737025837015,-500.0,0.00040899,18]
[349190523,1737025837025,-500.0,0.00040899,18]
[349190524,1737025837035,-500.0,0.00040899,18]
[349190525,1737025837045,-500.0,0.00040899,18]
[349190526,1737025837054,-506.8016862,0.00040899,18]
[349190527,1737025837064,-504.14552085,0.00040899,18]
[349190528,1737025837073,-500.0,0.00040899,18]
[349190529,1737025837083,-500.0,0.00040899,18]
[349190530,1737025837093,-500.0,0.00040899,18]
[349190531,1737025837103,-500.0,0.00040899,18]
[349190532,1737025837112,-500.0,0.00040899,18]
[349190533,1737025837121,-500.0,0.00040899,18]
[349190534,1737025837131,-507.26069321,0.00040899,18]
[349190535,1737025837141,-500.0,0.00040899,18]
[349190536,1737025837151,-500.0,0.00040899,18]
[349190537,1737025837161,-500.0,0.00040899,18]
[349190538,1737025837171,-184.10546384,0.00040899,18]
[349190539,1737025837180,-500.0,0.00040899,18]
[349190540,1737025837189,-500.0,0.00040899,18]
[349190541,1737025837198,-500.0,0.00040899,18]
[349190542,1737025837207,-501.95951583,0.00040899,18]
[349190543,1737025837217,-500.0,0.00040899,18]
[349190544,1737025837230,-500.0,0.00040899,18]
[349190545,1737025837240,-403.97772816,0.00040899,2]
[349190546,1737025837250,-500.0,0.00040899,18]
[349190547,1737025837260,-500.0,0.00040899,18]
[349190548,1737025837270,-500.0,0.00040899,18]
[349190549,1737025837280,-500.0,0.00040899,18]
[349190550,1737025837290,-500.0,0.00040899,18]
[349190551,1737025837299,-1855.2,0.00040899,18]
[349190552,1737025837309,-500.0,0.00040899,18]
[349190553,1737025837319,-500.0,0.00040899,18]
[349190554,1737025837329,-500.0,0.00040899,18]
[349190555,1737025837338,-500.0,0.00040899,18]
[349190556,1737025837348,-500.0,0.00040899,18]
[349190557,1737025837357,-500.0,0.00040899,18]
[349190558,1737025837366,-508.39,0.00040899,18]
[349190559,1737025837376,-500.0,0.00040899,18]
[349190560,1737025837385,-500.0,0.00040899,18]
[349190561,1737025837396,-500.0,0.00040899,18]
[349190562,1737025837406,-500.0,0.00040899,18]
[349190563,1737025837415,-500.0,0.00040899,18]
[349190564,1737025837428,-500.0,0.00040899,18]
[349190565,1737025837438,-500.0,0.00040899,18]
[349190566,1737025837448,-500.0,0.00040899,18]
[349190567,1737025837457,-500.0,0.00040899,18]
[349190568,1737025837467,-500.0,0.00040899,18]
[349190569,1737025837479,-500.0,0.00040899,18]
[349190570,1737025837490,-500.0,0.00040899,18]
[349190571,1737025837499,-500.0,0.00040899,18]
[349190572,1737025837509,-500.0,0.00040899,18]
[349190573,1737025837519,-500.0,0.00040899,18]
[349190574,1737025837529,-267.07827014,0.00040899,18]
[349190575,1737025837538,-500.0,0.00040899,18]
[349190576,1737025837548,-500.0,0.00040899,18]
[349190577,1737025837558,-500.0,0.00040899,18]
[349190578,1737025837567,-500.0,0.00040899,18]
[349190579,1737025837576,-502.34146087,0.00040899,18]
[349190580,1737025837586,-500.98402938,0.00040899,18]
[349190581,1737025837595,-231.64691931,0.00040899,18]
[349190582,1737025837605,-500.0,0.00040899,18]
[349190583,1737025837618,-1023.15,0.00040899,18]
[349190584,1737025837628,-500.0,0.00040899,18]
[349190585,1737025837636,-500.0,0.00040899,18]
[349190586,1737025837645,-500.0,0.00040899,18]
[349190587,1737025837654,-195.12331492,0.00040899,18]
[349190588,1737025837663,-500.0,0.00040899,18]
[349190589,1737025837672,-500.0,0.00040899,18]
[349190590,1737025837681,-500.0,0.00040899,18]
[349190591,1737025837691,-500.0,0.00040899,18]
[349190592,1737025837700,-249.75982601,0.00040899,18]
[349190593,1737025837709,-500.0,0.00040899,18]
[349190594,1737025837719,-500.0,0.00040899,18]
[349190595,1737025837730,-500.0,0.00040899,18]
[349190596,1737025837739,-500.0,0.00040899,18]
[349190597,1737025837749,-1444.71,0.00040899,18]
[349190598,1737025837763,-500.0,0.00040899,18]
[349190599,1737025837773,-500.0,0.00040899,18]
[349190600,1737025837783,-500.0,0.00040899,18]
[349190601,1737025837794,-500.0,0.00040899,18]
[349190602,1737025837804,-500.0,0.00040899,18]
[349190603,1737025837813,-500.0,0.00040899,18]
[349190604,1737025837823,-500.0,0.00040899,18]
[349190605,1737025837836,-500.0,0.00040899,18]
[349190606,1737025837847,-500.0,0.00040899,18]
[349190607,1737025837856,-500.0,0.00040899,18]
[349190608,1737025837866,-500.0,0.00040899,18]
[349190609,1737025837876,-500.0,0.00040899,18]
[349190610,1737025837886,-500.0,0.00040899,18]
[349190611,1737025837896,-500.0,0.00040899,18]
[349190612,1737025837905,-500.0,0.00040899,18]
[349190614,1737025837915,-500.0,0.00040899,18]
[349190615,1737025837925,-500.0,0.00040899,18]
[349190616,1737025837935,-500.0,0.00040899,18]
[349190617,1737025837945,-500.0,0.00040899,18]
[349190618,1737025837955,-500.0,0.00040899,18]
[349190619,1737025837965,-620.99,0.00040899,18]
[349190620,1737025837976,-830.79,0.00040899,18]
[349190621,1737025837986,-500.0,0.00040899,18]
[349190622,1737025837995,-500.0,0.00040899,18]
[349190623,1737025838005,-310.6956362,0.00040899,18]
[349190624,1737025838015,-500.0,0.00040899,18]
[349190625,1737025838024,-1142.78,0.00040899,18]
[349190626,1737025838034,-500.0,0.00040899,18]
[349190627,1737025838043,-500.0,0.00040899,18]
[349190628,1737025838053,-500.0,0.00040899,18]
[349190629,1737025838062,-500.0,0.00040899,18]
[349190630,1737025838072,-500.0,0.00040899,18]
[349190631,1737025838081,-500.0,0.00040899,18]
[349190632,1737025838092,-500.0,0.00040899,18]
[349190633,1737025838101,-500.0,0.00040899,18]
[349190634,1737025838111,-500.0,0.00040899,18]
[349190635,1737025838120,-500.0,0.00040899,18]
[349190636,1737025838130,-500.0,0.00040899,18]
[349190637,1737025838142,-500.0,0.00040899,18]
[349190638,1737025838151,-500.0,0.00040899,18]
[349190639,1737025838161,-500.0,0.00040899,18]
[349190640,1737025838170,-1724.26,0.00040899,18]
[349190641,1737025838284,-554.98,0.00040899,18]
[349190642,1737025838295,-500.0,0.00040899,18]
[349190643,1737025838304,-843.88,0.00040899,18]
[349190644,1737025838313,-500.0,0.00040899,18]
[349190645,1737025838323,-500.0,0.00040899,18]
[349190646,1737025838332,-484.86272144,0.00040899,18]
[349190647,1737025838342,-500.0,0.00040899,18]
[349190648,1737025838351,-1721.9,0.00040899,18]
[349190649,1737025838361,-447.91718441,0.00040899,18]
[349190650,1737025838395,-52.08281559,0.00040899,18]
[349190651,1737025838404,-268.20759705,0.00040899,18]
[349190652,1737025838416,-231.79240295,0.00040899,18]
[349190653,1737025838426,-702.32,0.00040899,18]
[349190654,1737025838436,-500.0,0.00040899,18]
[349190655,1737025838445,-505.465725,0.00040899,18]
[349190656,1737025838455,-500.0,0.00040899,18]
[349190657,1737025838465,-832.06,0.00040899,18]
[349190658,1737025838476,-501.3336608,0.00040899,18]
[349190659,1737025838485,-500.0,0.00040899,18]
[349190660,1737025838495,-138.83136571,0.00040899,18]
[349190682,1737025838789,-361.16863429,0.00040899,18]
[349190684,1737025838799,-957.55,0.00040899,18]
[349190686,1737025838809,-500.0,0.00040899,18]
[349190688,1737025838819,-500.0,0.00040899,18]
[349190690,1737025838829,-500.0,0.00040899,18]
[349190692,1737025838839,-1171.68,0.00040899,18]
[349190694,1737025838849,-500.0,0.00040899,18]
[349190696,1737025838859,-77.70528216,0.00040899,18]
[349190698,1737025838870,-422.29471784,0.00040899,18]
[349190700,1737025838880,-869.11,0.00040899,18]
[349190702,1737025838890,-500.0,0.00040899,18]
[349190704,1737025838900,-500.0,0.00040899,18]
[349190706,1737025838909,-500.0,0.00040899,18]
[349190708,1737025838919,-500.0,0.00040899,18]